bitfinex-derivatives/quotes_BTCF0:USTF0_20260214
["timestamp","ask_amount","ask_price","bid_price","bid_amount"]
[1771057560316,0.028768,69559.0,69549.0,0.028866]
[1771057560609,0.014384,69558.0,69549.0,0.028866]
[1771057560815,0.01448,69557.0,69549.0,0.028866]
[1771057561215,0.014384,69556.0,69549.0,0.01448]
[1771057561512,0.028864,69557.0,69549.0,0.01448]
[1771057561911,0.01448,69557.0,69549.0,0.01448]
[1771057562505,0.028864,69557.0,69549.0,0.01448]
[1771057562709,0.028864,69557.0,69547.0,0.014386]
[1771057562917,0.014384,69556.0,69547.0,0.014386]
[1771057563318,0.014384,69556.0,69546.0,0.01448]
[1771057563319,0.014385,69553.0,69546.0,0.01448]
[1771057563506,0.028865,69553.0,69546.0,0.01448]
[1771057563709,0.028865,69553.0,69545.0,0.14388]
[1771057564117,0.028865,69553.0,69544.0,0.014387]
[1771057564420,0.01448,69553.0,69544.0,0.014387]
[1771057564717,0.01448,69553.0,69545.0,0.014387]
[1771057564918,0.01448,69553.0,69544.0,0.014387]
[1771057566013,0.014386,69550.0,69543.0,0.01448]
[1771057566225,0.01448,69549.0,69540.0,0.01451337]
[1771057566518,0.028866,69549.0,69540.0,0.02899337]
[1771057566720,0.00011006,69548.0,69532.0,0.36422727]
[1771057567021,0.014386,69547.0,69538.0,0.014388]
[1771057567219,0.014386,69546.0,69539.0,0.01448]
[1771057568117,0.014386,69547.0,69539.0,0.01448]
[1771057569126,0.014386,69547.0,69538.0,0.014388]
[1771057569127,0.00011006,69548.0,69536.0,0.014388]
[1771057569317,0.00011006,69548.0,69542.0,0.014387]
[1771057569619,0.00011006,69548.0,69543.0,0.014387]
[1771057570519,0.01448,69549.0,69541.0,0.014387]
[1771057570915,0.014386,69548.0,69531.0,0.37861627]
[1771057571121,0.37755038,69546.0,69535.0,0.028869]
[1771057571317,0.01448,69545.0,69535.0,0.028869]
[1771057571521,0.01448,69545.0,69536.0,0.014388]
[1771057571818,0.37764438,69545.0,69536.0,0.014388]
[1771057572018,0.37764438,69545.0,69536.0,0.028776]
[1771057572410,0.37764438,69545.0,69537.0,0.014388]
[1771057572611,0.01448,69545.0,69538.0,0.014388]
[1771057573018,0.01448,69545.0,69534.0,0.014389]
[1771057573019,0.01448,69545.0,69537.0,0.014388]
[1771057573216,0.014387,69544.0,69535.0,0.014389]
[1771057573412,0.39203138,69545.0,69535.0,0.014389]
[1771057573613,0.014387,69544.0,69534.0,0.014389]
[1771057574222,0.014387,69544.0,69534.0,0.028778]
[1771057574423,0.014387,69544.0,69535.0,0.014389]
[1771057574625,0.01448,69545.0,69539.0,0.014388]
[1771057574923,0.01448,69545.0,69532.0,0.01448]
[1771057574924,0.014387,69541.0,69532.0,0.36422727]
[1771057575123,0.014388,69539.0,69529.0,0.01439]
[1771057575512,0.01448,69540.0,69525.0,0.028871]
[1771057575717,0.014388,69539.0,69529.0,0.01439]
[1771057575924,0.01448,69540.0,69533.0,0.014389]
[1771057576419,0.014387,69544.0,69534.0,0.014389]
[1771057576723,0.028867,69543.0,69533.0,0.014389]
[1771057577119,0.028867,69543.0,69531.0,0.014389]
[1771057577317,0.043254,69543.0,69532.0,0.014389]
[1771057577517,0.043254,69543.0,69515.0,0.37862027]
[1771057577518,0.014389,69533.0,69515.0,0.37862027]
[1771057577718,0.01448,69537.0,69528.0,0.01439]
[1771057577919,0.01448,69537.0,69528.0,0.02887]
[1771057578515,0.01448,69537.0,69528.0,0.04326]
[1771057578718,0.01448,69537.0,69528.0,0.02887]
[1771057578916,0.014387,69543.0,69532.0,0.014389]
[1771057579123,0.01448,69542.0,69531.0,0.36422727]
[1771057579517,0.014388,69540.0,69530.0,0.01439]
[1771057579913,0.014388,69539.0,69528.0,0.02887]
[1771057580112,0.014388,69539.0,69528.0,0.04326]
[1771057580323,0.028776,69539.0,69529.0,0.01439]
[1771057580526,0.014388,69538.0,69528.0,0.02887]
[1771057580725,0.028868,69538.0,69528.0,0.02887]
[1771057582514,0.37764438,69538.0,69528.0,0.01448]
[1771057582714,0.014389,69533.0,69528.0,0.01448]
[1771057582914,0.014388,69539.0,69530.0,0.37861727]
[1771057583118,0.01448,69538.0,69530.0,0.36422727]
[1771057583523,0.028868,69538.0,69529.0,0.02887]
[1771057583723,0.01448,69538.0,69529.0,0.01448]
[1771057584328,0.028868,69538.0,69529.0,0.01448]
[1771057584625,0.014389,69535.0,69528.0,0.01448]
[1771057585621,0.01448,69538.0,69528.0,0.02887]
[1771057586328,0.028868,69538.0,69528.0,0.01448]
[1771057586928,0.014388,69537.0,69528.0,0.01448]
[1771057587523,0.014386,69547.0,69532.0,0.014389]
[1771057587724,0.014387,69543.0,69532.0,0.014389]
[1771057588031,0.1584,69542.0,69532.0,0.014389]
[1771057588727,0.1584,69542.0,69533.0,0.014389]
[1771057588924,0.1584,69542.0,69529.0,0.37861727]
[1771057589134,0.01448,69541.0,69533.0,0.014389]
[1771057589629,0.01448,69541.0,69529.0,0.01439]
[1771057589630,0.014388,69540.0,69529.0,0.01439]
[1771057590533,0.014388,69539.0,69529.0,0.01439]
[1771057591530,0.014388,69540.0,69529.0,0.01439]
[1771057592131,0.014388,69540.0,69529.0,0.02878]
[1771057592327,0.01448,69541.0,69534.0,0.014389]
[1771057592526,0.014388,69538.0,69523.0,0.38101532]
[1771057592731,0.028867,69541.0,69526.0,0.01439]
[1771057592732,0.014388,69537.0,69526.0,0.01439]
[1771057592928,0.014388,69537.0,69527.0,0.02887]
[1771057593122,0.014389,69534.0,69524.0,0.014391]
[1771057593428,0.028868,69537.0,69525.0,0.01448]
[1771057593943,0.014389,69536.0,69525.0,0.01448]
[1771057594426,0.01448,69537.0,69530.0,0.01439]
[1771057594634,0.01448,69537.0,69528.0,0.39549532]
[1771057595131,0.014386,69548.0,69533.0,0.39540432]
[1771057595330,0.1584,69547.0,69537.0,0.014388]
[1771057596930,0.172786,69547.0,69538.0,0.014388]
[1771057597126,0.014386,69548.0,69538.0,0.028776]
[1771057597334,0.1584,69547.0,69538.0,0.014388]
[1771057597628,0.01448,69546.0,69538.0,0.014388]
[1771057598532,0.01448,69546.0,69535.0,0.01448]
[1771057598533,0.014387,69545.0,69535.0,0.01448]
[1771057598828,0.014387,69544.0,69535.0,0.01448]
[1771057599532,0.01448,69544.0,69535.0,0.028869]
[1771057599832,0.028867,69544.0,69535.0,0.028869]
[1771057600734,0.01448,69544.0,69536.0,0.014388]
[1771057601234,0.01448,69544.0,69538.0,0.014388]
[1771057601629,0.01448,69544.0,69538.0,0.028776]
[1771057601835,0.028867,69544.0,69535.0,0.028869]
[1771057602031,0.38456971,69544.0,69536.0,0.01448]
[1771057602332,0.014387,69541.0,69536.0,0.01448]
[1771057603130,0.014387,69541.0,69535.0,0.01448]
[1771057603530,0.014387,69542.0,69535.0,0.01448]
[1771057604135,0.014387,69542.0,69522.0,0.39306438]
[1771057604341,0.014388,69537.0,69527.0,0.01439]
[1771057604534,0.014388,69537.0,69528.0,0.01439]
[1771057604734,0.014388,69537.0,69529.0,0.01448]
[1771057605538,0.014388,69536.0,69529.0,0.01448]
[1771057605737,0.014388,69537.0,69529.0,0.01448]
[1771057607535,0.014389,69536.0,69529.0,0.01448]
[1771057608835,0.028868,69539.0,69529.0,0.01448]
[1771057608836,0.01448,69539.0,69529.0,0.01448]
[1771057609042,0.028868,69539.0,69530.0,0.01439]
[1771057609638,0.014388,69538.0,69529.0,0.01448]
[1771057610239,0.014388,69538.0,69529.0,0.02887]
[1771057611435,0.014388,69538.0,69529.0,0.01439]
[1771057612142,0.028868,69539.0,69529.0,0.02878]
[1771057612337,0.028868,69539.0,69529.0,0.01439]
[1771057612539,0.014388,69537.0,69527.0,0.02887]
[1771057612836,0.014389,69535.0,69528.0,0.01448]
[1771057613040,0.014389,69534.0,69528.0,0.01448]
[1771057613340,0.014389,69534.0,69527.0,0.01448]
[1771057613530,0.014389,69535.0,69527.0,0.01448]
[1771057615137,0.01439,69531.0,69524.0,0.1584]
[1771057615331,0.01448,69533.0,69524.0,0.172791]
[1771057615531,0.028869,69533.0,69524.0,0.172791]
[1771057615841,0.01448,69533.0,69524.0,0.172791]
[1771057617936,0.01448,69533.0,69528.0,0.01439]
[1771057618342,0.014388,69538.0,69528.0,0.01439]
[1771057618937,0.014388,69537.0,69528.0,0.01439]
[1771057619137,0.028868,69537.0,69528.0,0.01439]
[1771057619337,0.01448,69537.0,69530.0,0.39306338]
[1771057619537,0.01448,69536.0,69530.0,0.39306338]
[1771057619742,0.014388,69540.0,69530.0,0.40745338]
[1771057620136,0.01448,69539.0,69530.0,0.40745338]
[1771057620341,0.01448,69539.0,69530.0,0.01439]
[1771057621638,0.014388,69537.0,69528.0,0.01448]
[1771057622239,0.01448,69536.0,69528.0,0.01448]
[1771057622938,0.028869,69536.0,69528.0,0.01448]
[1771057623139,0.014389,69535.0,69527.0,0.01448]
[1771057623345,0.014389,69534.0,69527.0,0.01448]
[1771057623944,0.014389,69535.0,69527.0,0.01448]
[1771057624345,0.028869,69536.0,69527.0,0.01448]
[1771057624546,0.014389,69535.0,69527.0,0.01448]
[1771057626348,0.014389,69535.0,69523.0,0.014391]
[1771057626349,0.014389,69535.0,69524.0,0.01448]
[1771057626544,0.01448,69536.0,69525.0,0.014391]
[1771057626746,0.01448,69536.0,69528.0,0.01439]
[1771057627643,0.014388,69538.0,69528.0,0.01439]
[1771057627845,0.1584,69537.0,69528.0,0.01439]
[1771057628348,0.01448,69536.0,69530.0,0.39107612]
[1771057628542,0.01448,69536.0,69530.0,0.40546612]
[1771057628744,0.14392,69540.0,69533.0,0.014389]
[1771057628949,0.014387,69543.0,69533.0,0.014389]
[1771057629147,0.172694,69542.0,69531.0,0.40546512]
[1771057629345,0.01448,69541.0,69531.0,0.40546512]
[1771057629743,0.01448,69541.0,69531.0,0.014389]
[1771057629744,0.028867,69541.0,69531.0,0.014389]
[1771057630449,0.01448,69540.0,69531.0,0.014389]
[1771057632552,0.028868,69540.0,69531.0,0.014389]
[1771057632847,0.028868,69540.0,69530.0,0.01439]
[1771057633054,0.01448,69540.0,69531.0,0.014389]
[1771057633644,0.01448,69539.0,69531.0,0.014389]
[1771057634657,0.01448,69539.0,69530.0,0.01439]
[1771057635158,0.01448,69539.0,69531.0,0.014389]
[1771057635753,0.01448,69539.0,69529.0,0.01439]
[1771057636054,0.14392,69542.0,69531.0,0.40546512]
[1771057636055,0.014387,69542.0,69531.0,0.40546512]
[1771057636262,0.01448,69541.0,69531.0,0.40546512]
[1771057636458,0.014387,69543.0,69532.0,0.40546512]
[1771057636651,0.01448,69542.0,69534.0,0.014389]
[1771057636956,0.01448,69542.0,69534.0,0.028869]
[1771057638853,0.01448,69542.0,69534.0,0.01448]
[1771057639652,0.01448,69542.0,69534.0,0.028869]
[1771057640962,0.01448,69543.0,69534.0,0.028869]
[1771057641266,0.014387,69542.0,69534.0,0.01448]
[1771057641455,0.38433103,69542.0,69529.0,0.14392]
[1771057641658,0.014388,69538.0,69530.0,0.01448]
[1771057642758,0.014388,69537.0,69530.0,0.01448]
[1771057643363,0.014389,69534.0,69529.0,0.14392]
[1771057643553,0.38433303,69536.0,69527.0,0.01448]
[1771057643753,0.014388,69537.0,69527.0,0.02887]
[1771057644154,0.014388,69536.0,69527.0,0.01448]
[1771057645559,0.014389,69534.0,69527.0,0.01448]
[1771057646154,0.014388,69536.0,69527.0,0.01448]
[1771057646155,0.014389,69535.0,69527.0,0.01448]
[1771057646861,0.014389,69534.0,69527.0,0.01448]
[1771057647251,0.014389,69532.0,69524.0,0.01448]
[1771057648965,0.028778,69532.0,69524.0,0.01448]
[1771057649459,0.01439,69531.0,69524.0,0.01448]
[1771057649664,0.01439,69530.0,69524.0,0.01448]
[1771057651066,0.01439,69529.0,69524.0,0.01448]
[1771057651264,0.01439,69530.0,69524.0,0.01448]
[1771057651456,0.01439,69529.0,69524.0,0.01448]
[1771057651662,0.01439,69531.0,69524.0,0.01448]
[1771057651865,0.01439,69530.0,69524.0,0.01448]
[1771057652863,0.014389,69532.0,69524.0,0.01448]
[1771057653066,0.01439,69531.0,69524.0,0.01448]
[1771057653265,0.01439,69531.0,69522.0,0.187182]
[1771057653564,0.01439,69531.0,69523.0,0.014391]
[1771057653767,0.014389,69532.0,69523.0,0.014391]
[1771057653963,0.01448,69534.0,69522.0,0.1584]
[1771057654169,0.01448,69533.0,69527.0,0.01439]
[1771057654468,0.01448,69532.0,69527.0,0.01439]
[1771057654967,0.01448,69532.0,69526.0,0.01439]
[1771057657168,0.01448,69532.0,69525.0,0.014391]
[1771057658967,0.01448,69532.0,69523.0,0.014391]
[1771057659671,0.028869,69532.0,69522.0,0.028871]
[1771057659970,0.01439,69530.0,69522.0,0.01448]
[1771057660170,0.01448,69532.0,69521.0,0.014392]
[1771057660171,0.01439,69531.0,69521.0,0.014392]
[1771057660368,0.01439,69527.0,69520.0,0.01448]
[1771057660570,0.014391,69525.0,69520.0,0.01448]
[1771057660771,0.014391,69526.0,69520.0,0.01448]
[1771057661072,0.01439,69527.0,69520.0,0.01448]
[1771057661272,0.028781,69527.0,69520.0,0.01448]
[1771057661465,0.014391,69526.0,69520.0,0.01448]
[1771057662573,0.014391,69525.0,69520.0,0.01448]
[1771057662768,0.014391,69526.0,69520.0,0.01448]
[1771057663077,0.014391,69525.0,69520.0,0.01448]
[1771057664368,0.02887,69528.0,69519.0,0.14392]
[1771057664369,0.014391,69524.0,69519.0,0.14392]
[1771057664672,0.014391,69525.0,69519.0,0.12956737]
[1771057664874,0.014391,69524.0,69519.0,0.12956737]
[1771057667774,0.014391,69525.0,69519.0,0.12956737]
[1771057668169,0.028871,69525.0,69519.0,0.12956737]
[1771057668679,0.01448,69525.0,69519.0,0.12956737]
[1771057668980,0.01448,69525.0,69519.0,0.14395937]
[1771057669182,0.01448,69525.0,69519.0,0.12956737]
[1771057670880,0.028871,69525.0,69519.0,0.12956737]
[1771057671582,0.01448,69525.0,69519.0,0.12956737]
[1771057671881,0.028871,69525.0,69519.0,0.12956737]
[1771057672982,0.01448,69525.0,69519.0,0.12956737]
[1771057673872,0.01448,69525.0,69518.0,0.028872]
[1771057674083,0.028871,69525.0,69518.0,0.028872]
[1771057674282,0.014391,69523.0,69518.0,0.01448]
[1771057675585,0.01448,69525.0,69518.0,0.01448]
[1771057677088,0.01448,69525.0,69518.0,0.028872]
[1771057678790,0.01448,69525.0,69519.0,0.014392]
[1771057679491,0.01448,69525.0,69518.0,0.01448]
[1771057682586,0.028871,69525.0,69518.0,0.01448]
[1771057684793,0.028871,69525.0,69466.0,1.07376183]
[1771057684794,0.37145869,69519.0,69501.0,0.014396]
[1771057685091,0.01448,69518.0,69507.0,0.014394]
[1771057685281,0.01448,69518.0,69508.0,0.01448]
[1771057685787,0.01448,69518.0,69510.0,0.014394]
[1771057688081,0.01448,69518.0,69508.0,0.01448]
[1771057688286,0.01448,69518.0,69513.0,0.014393]
[1771057688489,0.14392,69522.0,69513.0,0.014393]
[1771057688682,0.014391,69524.0,69514.0,0.014393]
[1771057688988,0.014391,69522.0,69513.0,0.014393]
[1771057689181,0.014391,69522.0,69512.0,0.014393]
[1771057689982,0.014391,69522.0,69513.0,0.014393]
[1771057690387,0.028871,69523.0,69513.0,0.014393]
[1771057691175,0.01448,69523.0,69517.0,0.014392]
[1771057692591,0.01448,69523.0,69516.0,0.014393]
[1771057693993,0.01448,69523.0,69515.0,0.014393]
[1771057694689,0.014391,69525.0,69515.0,0.014393]
[1771057694890,0.01448,69524.0,69518.0,0.014392]
[1771057695095,0.01448,69523.0,69518.0,0.014392]
[1771057695294,0.15831,69528.0,69518.0,0.014392]
[1771057695797,0.01448,69527.0,69518.0,0.014392]
[1771057696795,0.01448,69526.0,69518.0,0.014392]
[1771057697194,0.01448,69526.0,69517.0,0.014392]
[1771057698095,0.014391,69525.0,69515.0,0.014393]
[1771057699494,0.01448,69526.0,69515.0,0.014393]
[1771057700202,0.01448,69525.0,69516.0,0.014393]
[1771057702893,0.014391,69526.0,69517.0,0.36963814]
[1771057703100,0.028869,69533.0,69523.0,0.014391]
[1771057703299,0.028869,69533.0,69522.0,0.38411814]
[1771057703495,0.01439,69531.0,69523.0,0.01448]
[1771057704297,0.01439,69531.0,69522.0,0.01448]
[1771057704298,0.01439,69529.0,69522.0,0.01448]
[1771057704800,0.37145669,69529.0,69518.0,0.14392]
[1771057704998,0.014391,69526.0,69520.0,0.01448]
[1771057705601,0.014391,69525.0,69520.0,0.01448]
[1771057705992,0.014391,69525.0,69518.0,0.14392]
[1771057706787,0.01448,69526.0,69518.0,0.14392]
[1771057707003,0.028871,69526.0,69518.0,0.14392]
[1771057707395,0.014391,69525.0,69518.0,0.14392]
[1771057708005,0.028871,69526.0,69518.0,0.14392]
[1771057709199,0.01448,69526.0,69518.0,0.14392]
[1771057709393,0.01448,69526.0,69519.0,0.014392]
[1771057710104,0.01448,69526.0,69521.0,0.014392]
[1771057710396,0.14392,69530.0,69521.0,0.38402914]
[1771057710702,0.01448,69529.0,69522.0,0.014391]
[1771057717107,0.014389,69532.0,69523.0,0.01448]
[1771057717108,0.01448,69531.0,69523.0,0.01448]
[1771057717605,0.01448,69531.0,69523.0,0.028871]
[1771057719100,0.01448,69531.0,69523.0,0.01448]
[1771057719509,0.01448,69531.0,69523.0,0.028871]
[1771057722115,0.01448,69531.0,69523.0,0.01448]
[1771057723009,0.38918282,69530.0,69518.0,0.14392]
[1771057723213,0.40357282,69529.0,69519.0,0.028872]
[1771057723716,0.01439,69527.0,69519.0,0.01448]
[1771057724011,0.40357282,69529.0,69519.0,0.01448]
[1771057724212,0.02887,69528.0,69519.0,0.01448]
[1771057724401,0.01439,69527.0,69519.0,0.01448]
[1771057724603,0.01448,69528.0,69519.0,0.01448]
[1771057725008,0.41805282,69528.0,69519.0,0.01448]
[1771057725208,0.014391,69526.0,69519.0,0.01448]
[1771057726116,0.41805282,69528.0,69519.0,0.01448]
[1771057726909,0.014391,69526.0,69519.0,0.01448]
[1771057731612,0.014391,69523.0,69512.0,0.158313]
[1771057731813,0.014391,69523.0,69513.0,0.014393]
[1771057732017,0.014392,69522.0,69512.0,0.158313]
[1771057732516,0.014392,69521.0,69512.0,0.158313]
[1771057733514,0.01444,69522.0,69513.0,0.014393]
[1771057733816,0.01444,69522.0,69514.0,0.01444]
[1771057734416,0.01444,69522.0,69514.0,0.028833]
[1771057734618,0.01444,69522.0,69515.0,0.014393]
[1771057735016,0.014391,69524.0,69515.0,0.014393]
[1771057735315,0.014391,69524.0,69508.0,0.014394]
[1771057735316,0.38918282,69522.0,69502.0,0.54433307]
[1771057735516,0.014392,69518.0,69508.0,0.014394]
[1771057735816,0.014392,69519.0,69508.0,0.014394]
[1771057735817,0.01444,69517.0,69508.0,0.014394]
[1771057736220,0.028832,69517.0,69508.0,0.014394]
[1771057736411,0.014393,69515.0,69508.0,0.01444]
[1771057736611,0.014393,69514.0,69508.0,0.01444]
[1771057740413,0.01444,69516.0,69508.0,0.01444]
[1771057740810,0.14392,69522.0,69514.0,0.014393]
[1771057741010,0.01444,69523.0,69516.0,0.014393]
[1771057741209,0.01444,69523.0,69507.0,0.014394]
[1771057741210,0.014391,69522.0,69509.0,0.014394]
[1771057741415,0.014392,69521.0,69510.0,0.014394]
[1771057741823,0.014392,69521.0,69511.0,0.01444]
[1771057742213,0.014391,69525.0,69513.0,0.014393]
[1771057742519,0.014391,69525.0,69515.0,0.014393]
[1771057742721,0.014391,69525.0,69513.0,0.38135592]
[1771057742910,0.01444,69524.0,69512.0,0.014393]
[1771057743516,0.014391,69523.0,69512.0,0.014393]
[1771057743717,0.014391,69523.0,69513.0,0.014393]
[1771057744015,0.014391,69524.0,69513.0,0.014393]
[1771057745029,0.01444,69523.0,69513.0,0.014393]
[1771057745727,0.01439,69528.0,69514.0,0.014393]
[1771057745922,0.014391,69525.0,69514.0,0.014393]
[1771057746223,0.014391,69525.0,69515.0,0.01444]
[1771057746929,0.014391,69524.0,69515.0,0.01444]
[1771057747323,0.014391,69524.0,69514.0,0.014393]
[1771057747524,0.01444,69523.0,69510.0,0.014394]
[1771057747729,0.01444,69523.0,69512.0,0.014393]
[1771057748423,0.01444,69523.0,69513.0,0.01444]
[1771057748830,0.014391,69522.0,69513.0,0.01444]
[1771057749230,0.028831,69523.0,69513.0,0.028833]
[1771057749432,0.043222,69523.0,69513.0,0.01444]
[1771057749622,0.028831,69523.0,69513.0,0.028833]
[1771057749821,0.028831,69523.0,69514.0,0.014393]
[1771057749822,0.01444,69523.0,69514.0,0.014393]
[1771057750132,0.028831,69523.0,69513.0,0.028833]
[1771057750334,0.014391,69522.0,69513.0,0.01444]
[1771057750834,0.01444,69523.0,69514.0,0.014393]
[1771057753338,0.028831,69523.0,69513.0,0.01444]
[1771057755133,0.028781,69523.0,69513.0,0.01444]
[1771057755340,0.01444,69523.0,69514.0,0.014393]
[1771057758440,0.014391,69524.0,69514.0,0.014393]
[1771057758441,0.01444,69522.0,69514.0,0.014393]
[1771057759032,0.35958649,69528.0,69513.0,0.028833]
[1771057759033,0.014389,69533.0,69516.0,0.36696292]
[1771057759233,0.014389,69533.0,69505.0,0.158315]
[1771057759234,0.01444,69532.0,69523.0,0.014391]
[1771057759434,0.01444,69532.0,69524.0,0.014391]
[1771057759630,0.01444,69532.0,69523.0,0.014391]
[1771057761541,0.01444,69532.0,69520.0,0.014392]
[1771057761737,0.01444,69532.0,69521.0,0.014392]
[1771057762042,0.01444,69532.0,69523.0,0.014391]
[1771057762637,0.01439,69529.0,69519.0,0.014392]
[1771057762842,0.01439,69531.0,69517.0,0.014392]
[1771057762843,0.02878,69531.0,69520.0,0.014392]
[1771057763038,0.01439,69531.0,69521.0,0.014392]
[1771057763242,0.028829,69532.0,69522.0,0.01444]
[1771057763542,0.028829,69532.0,69522.0,0.028831]
[1771057765446,0.028829,69532.0,69522.0,0.01444]
[1771057765750,0.043218,69532.0,69522.0,0.01444]
[1771057765937,0.028829,69532.0,69522.0,0.01444]
[1771057766132,0.028829,69532.0,69521.0,0.028782]
[1771057766337,0.028829,69532.0,69516.0,0.36696292]
[1771057766338,0.01439,69530.0,69516.0,0.36696292]
[1771057766538,0.01439,69528.0,69517.0,0.014392]
[1771057766733,0.01439,69528.0,69518.0,0.01444]
[1771057767141,0.01439,69528.0,69518.0,0.028832]
[1771057767343,0.37397549,69533.0,69519.0,0.36696292]
[1771057767344,0.014389,69533.0,69519.0,0.36696292]
[1771057767645,0.01439,69531.0,69521.0,0.014391]
[1771057767833,0.01444,69530.0,69523.0,0.014391]
[1771057768038,0.01444,69530.0,69523.0,0.38135392]
[1771057768243,0.01444,69530.0,69523.0,0.36696292]
[1771057768441,0.35958649,69551.0,69524.0,0.38140292]
[1771057768641,0.014384,69560.0,69544.0,0.36696292]
[1771057768835,0.014386,69551.0,69542.0,0.01444]
[1771057769033,0.014386,69549.0,69542.0,0.01444]
[1771057769241,0.01444,69551.0,69542.0,0.01444]
[1771057769446,0.014386,69547.0,69541.0,0.01444]
[1771057769642,0.014387,69543.0,69536.0,0.01444]
[1771057769841,0.014387,69542.0,69536.0,0.01444]
[1771057770335,0.014387,69541.0,69536.0,0.01444]
[1771057771148,0.014387,69541.0,69533.0,0.01444]
[1771057771649,0.014387,69542.0,69533.0,0.01444]
[1771057772750,0.01444,69544.0,69535.0,0.014389]
[1771057773441,0.028827,69544.0,69535.0,0.014389]
[1771057773644,0.028827,69544.0,69534.0,0.014389]
[1771057774952,0.014388,69541.0,69531.0,0.014389]
[1771057775245,0.028828,69541.0,69532.0,0.028829]
[1771057778746,0.043216,69541.0,69532.0,0.028829]
[1771057779249,0.028828,69541.0,69532.0,0.028829]
[1771057779641,0.01444,69541.0,69532.0,0.043218]
[1771057779947,0.01444,69541.0,69533.0,0.014389]
[1771057780548,0.01444,69541.0,69534.0,0.014389]
[1771057781550,0.01444,69541.0,69533.0,0.014389]
[1771057781749,0.028827,69541.0,69533.0,0.014389]
[1771057782053,0.01444,69541.0,69533.0,0.014389]
[1771057784546,0.01444,69541.0,69534.0,0.014389]
[1771057787248,0.01444,69541.0,69535.0,0.014389]
[1771057789758,0.01444,69541.0,69534.0,0.014389]
[1771057790763,0.01444,69541.0,69535.0,0.014389]
[1771057790962,0.01444,69541.0,69534.0,0.014389]
[1771057791362,0.01444,69541.0,69533.0,0.014389]
[1771057791664,0.01444,69541.0,69534.0,0.014389]
[1771057791858,0.01444,69541.0,69535.0,0.014389]
[1771057792468,0.01444,69541.0,69535.0,0.028778]
[1771057792765,0.01444,69541.0,69535.0,0.014389]
[1771057793462,0.01444,69541.0,69535.0,0.028778]
[1771057793666,0.01444,69541.0,69535.0,0.014389]
[1771057797168,0.01444,69541.0,69531.0,0.014389]
[1771057797169,0.014388,69540.0,69526.0,0.01439]
[1771057797372,0.014388,69538.0,69529.0,0.01444]
[1771057797762,0.014388,69537.0,69529.0,0.01444]
[1771057798168,0.028828,69537.0,69529.0,0.01444]
[1771057798369,0.01444,69537.0,69529.0,0.01444]
[1771057799173,0.01444,69537.0,69530.0,0.01439]
[1771057799472,0.01444,69537.0,69530.0,0.02878]
[1771057800175,0.01444,69537.0,69531.0,0.014389]
[1771057800471,0.38608765,69560.0,69539.0,0.36537156]
[1771057800676,0.014385,69555.0,69544.0,0.014387]
[1771057800971,0.01444,69554.0,69530.0,0.38465304]
[1771057801170,0.01444,69554.0,69500.0,0.14495161]
[1771057801171,0.38129728,69542.0,69527.0,0.01439]
[1771057801476,0.014389,69532.0,69523.0,0.01444]
[1771057801670,0.028829,69532.0,69523.0,0.01444]
[1771057801867,0.01439,69530.0,69523.0,0.01444]
[1771057802068,0.01444,69532.0,69521.0,0.028832]
[1771057802069,0.01439,69531.0,69521.0,0.028832]
[1771057802779,0.02878,69530.0,69521.0,0.01444]
[1771057803082,0.01439,69527.0,69521.0,0.01444]
[1771057803378,0.01439,69527.0,69520.0,0.01444]
[1771057804169,0.01444,69528.0,69520.0,0.01444]
[1771057806468,0.02883,69528.0,69520.0,0.01444]
[1771057807672,0.01444,69528.0,69519.0,0.014392]
[1771057808269,0.02883,69528.0,69518.0,0.172702]
[1771057809478,0.01444,69528.0,69519.0,0.014392]
[1771057812174,0.014391,69526.0,69518.0,0.15831]
[1771057812377,0.01444,69525.0,69518.0,0.15831]
[1771057815477,0.014391,69524.0,69510.0,0.14392]
[1771057815684,0.014391,69522.0,69512.0,0.014393]
[1771057815980,0.014391,69523.0,69512.0,0.014393]
[1771057816377,0.014391,69524.0,69514.0,0.014393]
[1771057816579,0.01444,69525.0,69514.0,0.028833]
[1771057816881,0.014391,69524.0,69514.0,0.01444]
[1771057817283,0.028831,69525.0,69516.0,0.014393]
[1771057818081,0.014391,69522.0,69514.0,0.01444]
[1771057818279,0.028831,69522.0,69514.0,0.01444]
[1771057818481,0.01444,69522.0,69514.0,0.01444]
[1771057818678,0.01444,69522.0,69507.0,0.014394]
[1771057818679,0.014392,69520.0,69507.0,0.014394]
[1771057818885,0.014392,69521.0,69512.0,0.014393]
[1771057819084,0.014392,69521.0,69513.0,0.01444]
[1771057819284,0.028831,69522.0,69513.0,0.01444]
[1771057819285,0.014392,69520.0,69513.0,0.01444]
[1771057821487,0.014392,69521.0,69513.0,0.01444]
[1771057822488,0.014392,69521.0,69513.0,0.028833]
[1771057823185,0.014392,69520.0,69513.0,0.01444]
[1771057823380,0.014392,69521.0,69513.0,0.01444]
[1771057823781,0.014392,69521.0,69512.0,0.014393]
[1771057824590,0.014392,69520.0,69512.0,0.014393]
[1771057824787,0.014392,69521.0,69512.0,0.014393]
[1771057824988,0.014392,69521.0,69512.0,0.028786]
[1771057825194,0.014392,69521.0,69513.0,0.014393]
[1771057825494,0.028831,69522.0,69513.0,0.014393]
[1771057825694,0.043223,69522.0,69513.0,0.014393]
[1771057825898,0.028831,69522.0,69513.0,0.028786]
[1771057826597,0.028831,69522.0,69514.0,0.014393]
[1771057826998,0.01444,69522.0,69515.0,0.014393]
[1771057829495,0.028831,69522.0,69513.0,0.014393]